Cogmind - Beta 14 @@@ ROGUE MODE // 2024.08.26 @ 15:55:19 Player: Wotf Result: Destroyed by G-50 Soldier with Heavy Laser Performance ------------- Evolutions (3) 1500 Regions Visited (9) 1800 Robots Destroyed (235) 1175 Value Destroyed (6562) 6562 Prototype IDs (30) 600 Alien Tech Used (0) 0 Bonus (1523) 1523 TOTAL SCORE: 13160 Bonus ------- High Alert Combat Kills 896 Follower Combat Kills 399 Aligned with FarCom 300 Friendly Fire -72 Cogmind --------- Core Integrity 0/700 Matter 68/300 Energy 90/100 System Corruption 13% Temperature Warm (136) Movement Core (1450) Ox28 Location -7/Storage Parts ------- > --- POWER (1) -------- (None) > --- PROPULSION (4) --- (None) > --- UTILITY (5) ------ Huge Storage Unit > --- WEAPON (3) ------- Mini Assault Cannon Katana > --- INVENTORY (25) --- Light Nuclear Core Armored Treads Medium Matter Pod (100) Large Matter Pod (150) High-capacity Matter Pod (200) High-capacity Matter Pod (200) High-capacity Matter Pod (200) Improved Signal Interpreter Hacking Suite Recalibrator Drone Bay (2/2) Pulse Rifle Improved Assault Rifle Gauss Rifle Mini Assault Cannon Mini Assault Cannon Magnetic Acceleration Cannon Advanced EMP Blaster Rocket Launcher Rocket Launcher Improved Grenade Launcher Peak State ------------ > --- POWER ------------ Reinforced Ion Engine > --- PROPULSION ------- Light Treads Light Treads Armored Treads Armored Treads > --- UTILITY ---------- Advanced Heat Sink Huge Storage Unit Light Armor Plating Hardened Light Armor Plating Improved Shield Generator > --- WEAPON ----------- Latent Energy Streamer Mini Assault Cannon Magnetic Acceleration Cannon > --- INVENTORY -------- Reinforced Ion Engine Armored Treads Armored Treads Advanced Treads Large Matter Pod High-capacity Matter Pod High-capacity Matter Pod High-capacity Matter Pod Medium Armor Plating Hardened Light Armor Plating Improved Light Armor Plating Improved Shield Generator Hacking Suite Pulse Rifle Assault Cannon Mini Assault Cannon Magnetic Acceleration Cannon Magnetic Acceleration Cannon Advanced EMP Blaster Rocket Launcher Rocket Launcher Improved Grenade Launcher Katana [Rating: 49] Favorites ----------- Power Reinforced Ion Engine Engine Reinforced Ion Engine Propulsion Light Treads Treads Light Treads Wheel Wheel Utility Huge Storage Unit Device Shield Generator Storage Huge Storage Unit Processor Advanced Targeting Computer Protection Hardened Light Armor Plating Weapon Assault Cannon Energy Gun EM Pulse Gun Energy Cannon Light EM Pulse Cannon Ballistic Gun Light Assault Rifle Ballistic Cannon Assault Cannon Launcher Rocket Launcher Impact Weapon Maul Slashing Weapon Katana Build | -11 -10 -10 -9 -9 -9 -8 -8 -7 -7 ------- Run | Yrd Mat Min Mat Min Exi Min Mat Fac Sto Slots Evolved 6 | . . . 2 . . . 2 2 . Power . | . . . . . . . . . . Propulsion 2 | . . . 1 . . . 1 . . Utility 3 | . . . 1 . . . 1 1 . Weapon 1 | . . . . . . . . 1 . Parts Attached 181 | 6 40 . 43 5 . 2 37 22 26 Power 11 | 1 5 . . . . . 1 . 4 Engine 10 | 1 5 . . . . . 1 . 3 Core 1 | . . . . . . . . . 1 Reactor . | . . . . . . . . . . Propulsion 38 | 2 7 . 14 . . . 7 5 3 Treads 37 | 2 7 . 13 . . . 7 5 3 Leg . | . . . . . . . . . . Wheel 1 | . . . 1 . . . . . . Hover . | . . . . . . . . . . Flight . | . . . . . . . . . . Utility 36 | 1 7 . 10 . . . 5 6 7 Device 15 | . 3 . 3 . . . 1 2 6 Storage 6 | 1 4 . 1 . . . . . . Processor 3 | . . . 2 . . . 1 . . Hackware . | . . . . . . . . . . Protection 12 | . . . 4 . . . 3 4 1 Artifact . | . . . . . . . . . . Weapon 96 | 2 21 . 19 5 . 2 24 11 12 Energy Gun 10 | 2 8 . . . . . . . . Energy Cannon 7 | . 4 . 1 . . . . 1 1 Ballistic Gun 8 | . 4 . 1 . . . . . 3 Ballistic Cannon 43 | . 1 . 9 3 . 2 18 6 4 Launcher 14 | . 4 . 1 2 . . 3 3 1 Special Weapon . | . . . . . . . . . . Impact Weapon 7 | . . . 7 . . . . . . Slashing Weapon 7 | . . . . . . . 3 1 3 Piercing Weapon . | . . . . . . . . . . Special Melee Weapon . | . . . . . . . . . . Unidentified Prototypes 2 | . . . . . . . 2 . . Parts Lost 32 | . 3 . 2 . . . 4 7 16 Power 4 | . . . . . . . . . 4 Propulsion 12 | . . . 1 . . . 3 2 6 Utility 11 | . . . 1 . . . 1 4 5 Weapon 5 | . 3 . . . . . . 1 1 Highest Loss Streak 12 | . 2 . 1 . . . 1 6 12 To Critical Strikes . | . . . . . . . . . . Average Slot Usage (%) 97 | . 98 100 99 100 77 100 99 97 95 Engine 10 | . 13 14 11 11 11 11 9 7 6 Treads 31 | . 27 28 32 33 33 33 35 29 28 Device 9 | . 13 14 6 11 11 11 6 14 13 Storage 10 | . 14 14 11 11 11 11 9 7 7 Processor 3 | . . . 5 . . . 7 . . Protection 9 | . . . 9 11 11 11 13 14 14 Energy Gun 1 | . 7 . . . . . . . . Energy Cannon 2 | . 7 14 . . . . . . . Ballistic Gun 1 | . 8 . . . . . . . 4 Ballistic Cannon 15 | . 3 14 18 21 . 22 17 19 15 Peak Build Rating 49 | 6 10 10 23 22 22 24 34 49 47 Average Rating 23 | 5 8 10 19 21 17 23 29 42 42 On Entrance 19 | . 6 10 10 21 22 17 24 34 46 Naked Turns . | . . . . . . . . . . Heaviest Build 125 | 13 38 38 107 107 97 107 112 125 123 Greatest Support 82 | 40 40 40 60 60 60 60 80 80 82 Greatest Overweight (x) 28 | . 1 . 3 1 1 1 1 2 28 Average Overweight (x) . | . . . . 1 1 1 1 1 1 Largest Inventory Capacity 25 | 8 15 15 25 25 25 25 25 25 25 Average Capacity 21 | 7 13 15 21 25 25 25 25 25 25 Most Carried 25 | 6 15 15 25 25 25 25 25 25 25 Average Carried 21 | 3 12 15 20 25 24 24 24 23 24 Final Capacity 25 | 8 15 15 25 25 25 25 25 25 25 Final Carried 25 | 6 15 15 25 25 25 25 25 25 21 Class Distribution -------------------- 85% | Mutant 6% | Scavenger-Tank 6% | Tank Dominant Class ---------------- Mutant | -10/Materials Mutant | -10/Mines Mutant | -9/Materials Mutant | -9/Mines Mutant | -9/Exiles Mutant | -8/Mines Mutant | -8/Materials Tank | -7/Factory Scavenger-Tank | -7/Storage Resources | -11 -10 -10 -9 -9 -9 -8 -8 -7 -7 ----------- Run | Yrd Mat Min Mat Min Exi Min Mat Fac Sto Matter Collected 8189 | 215 1018 58 1485 239 . . 2214 1505 1455 Remotely . | . . . . . . . . . . Salvage Created 6661 | . 1177 146 1204 346 . . 1719 938 1131 Parts 366 | . 68 6 85 18 . . 93 46 50 Haulers Intercepted 14 | . 2 . 5 . . . 4 1 2 Recyclers Shooed 8 | . 1 2 1 1 . . 1 1 1 Parts Field Recycled . | . . . . . . . . . . Retrieved Matter . | . . . . . . . . . . Parts Self-Destructed . | . . . . . . . . . . Prevented . | . . . . . . . . . . Kills | -11 -10 -10 -9 -9 -9 -8 -8 -7 -7 ------- Run | Yrd Mat Min Mat Min Exi Min Mat Fac Sto Combat Hostiles Destroyed 144 | . 25 4 27 5 . . 39 21 23 Melee 1 | . . . . . . . . . 1 Guns 11 | . 8 . . . . . . . 3 Cannons 98 | . 5 3 24 2 . . 35 15 14 AOE 33 | . 11 1 3 3 . . 4 6 5 Classes Destroyed 14 | . 8 . 2 . . . 3 1 . Worker 18 | . 3 . 4 . . . 9 2 . Builder 12 | . 3 . 1 3 . . 3 1 1 Tunneler 4 | . . . 1 1 . . 1 1 . Hauler 14 | . 2 . 5 . . . 4 1 2 Recycler 23 | . 3 1 1 2 . . 3 6 7 Operator 8 | . 2 . 2 . . . 1 1 2 Watcher 15 | . 3 . 5 . . . 5 . 2 Swarmer 28 | . 6 4 8 . . . 3 4 3 Grunt 85 | . 19 . 10 5 . . 27 11 13 Brawler 5 | . . . . . . . 2 . 3 Duelist 5 | . . . . . . . 2 2 1 Sentry 15 | . . . 9 . . . 4 1 1 Hunter 2 | . . . . . . . 1 . 1 Programmer 4 | . . . . . . . . 3 1 Best Kill Streak 9 | . 6 3 4 5 . . 9 4 9 Combat Bots Only 8 | . 4 3 4 3 . . 4 4 8 Max Kills in Single Turn 3 | . 3 1 3 2 . . 3 2 2 Gunslinging . | . . . . . . . . . . Exploded 3 | . 3 1 3 1 . . 2 2 1 Melee 1 | . . . . . . . . . 1 Uniques/NPCs Destroyed . | . . . . . . . . . . Combat | -11 -10 -10 -9 -9 -9 -8 -8 -7 -7 -------- Run | Yrd Mat Min Mat Min Exi Min Mat Fac Sto Hostile Shots Fired 753 | . 106 11 117 5 . . 143 126 245 Missed 199 | . 26 3 42 3 . . 43 34 48 Damage Taken 8124 | . 955 115 883 21 . . 1426 1598 3126 Core 1254 | . 167 18 128 . . . 234 4 703 Absorbed by Shields 794 | . . . 77 8 . . 154 260 295 Ignored by Resistances 130 | . . . . . . . 118 12 . Regen/Repaired (Parts) 531 | . 69 . 161 . . . 170 102 29 Core Remaining (%) 62 | 100 . 26 . . . 68 57 . . Volleys Fired 548 | . 139 12 102 11 . . 140 66 78 Largest 3 | . 2 2 2 2 . . 2 3 3 Hottest 154 | . 105 91 91 88 . . 92 154 140 Shots Fired 1081 | . 202 24 200 21 . 1 268 162 203 Gun 216 | . 159 . 4 . . . . . 53 Cannon 832 | . 32 24 195 17 . 1 264 157 142 Launcher 33 | . 11 . 1 4 . . 4 5 8 Special . | . . . . . . . . . . Kinetic 911 | . 73 12 192 17 . 1 264 157 195 Thermal 60 | . 60 . . . . . . . . Explosive 32 | . 11 . 1 4 . . 4 4 8 Electromagnetic 78 | . 58 12 7 . . . . 1 . Robot Hit Streak 12 | . 12 5 12 7 . . 12 12 12 Robot Miss Streak 12 | . 5 2 7 2 . . 12 5 4 Penetration Max . | . . . . . . . . . . Secondary Targets . | . . . . . . . . . . Shots Hit Robots 652 | . 117 13 102 13 . . 193 92 122 Core Hits 397 | . 59 7 48 15 . . 151 44 73 Critical Kills . | . . . . . . . . . . Critical Parts Destroyed 2 | . . . 1 . . . . . 1 Critical Strikes 16 | . 1 . 5 . . . 3 5 2 Destroy 1 | . . . . . . . . . 1 Blast 13 | . . . 4 . . . 3 5 1 Corrupt 1 | . 1 . . . . . . . . Smash 1 | . . . 1 . . . . . . Melee Attacks 30 | . . . 11 . . . 3 3 13 Impact 11 | . . . 11 . . . . . . Slashing 19 | . . . . . . . 3 3 13 Piercing . | . . . . . . . . . . Sneak Attacks 4 | . . . 2 . . . 1 1 . Combat Hostiles . | . . . . . . . . . . Follow-up Attacks . | . . . . . . . . . . Damage Inflicted 19095 | . 2501 373 2587 668 . . 5598 3460 3908 Guns 2012 | . 1153 . 51 . . . . . 808 Cannons 12839 | . 292 248 2282 299 . . 4867 2629 2222 Explosions 3840 | . 1056 125 61 369 . . 669 769 791 Melee 389 | . . . 193 . . . 62 62 72 Ramming 15 | . . . . . . . . . 15 Kinetic 13567 | . 423 68 2251 299 . . 4867 2629 3030 Thermal 1093 | . 649 125 . . . . . 319 . Explosive 3191 | . 949 . 61 369 . . 669 352 791 Electromagnetic 840 | . 480 180 82 . . . . 98 . Impact 193 | . . . 193 . . . . . . Slashing 196 | . . . . . . . 62 62 72 Piercing . | . . . . . . . . . . Highest Corruption 13 | . 1 1 1 1 1 1 . 4 13 Average Corruption 1 | . 1 1 1 1 1 1 . 1 4 Corruption Purged . | . . . . . . . . . . Corruption Blocked . | . . . . . . . . . . Effects 80 | . 5 5 8 7 4 2 . 17 32 Message Errors 20 | . 1 3 2 . . 1 . 6 7 Matter Fused 22 | . 2 1 2 4 1 . . 5 7 Heat Flow Errors 11 | . . . 2 2 1 . . . 6 Energy Discharges 7 | . . 1 . . . . . 2 4 Parts Fused 1 | . . . . . . . . 1 . Data Loss (minor) 8 | . 1 . 2 . 2 . . 2 1 Data Loss (major) 3 | . . . . . . . . 1 2 Misfires 4 | . 1 . . 1 . 1 . . 1 Weapon Failures 4 | . . . . . . . . . 4 Overload Shots . | . . . . . . . . . . Overflow Damage 654 | . 42 16 192 . . . 139 192 73 Projectiles 290 | . 6 9 24 . . . 100 110 41 Explosions 196 | . 36 7 . . . . 39 82 32 Melee 168 | . . . 168 . . . . . . Knockbacks 113 | . 1 . 8 2 . . 56 18 28 Impact 2 | . . . 1 . . . . . 1 Kinetic 105 | . 1 . 7 2 . . 55 18 22 Secondary 6 | . . . . . . . 1 . 5 Self-Inflicted Damage 321 | . 74 49 . . . . 98 33 67 Shots 10 | . 4 1 . . . . 2 2 1 Rammed 2 | . . . . . . . . . 2 Targets Rammed 2 | . . . . . . . . . 2 Kicked . | . . . . . . . . . . Crushed . | . . . . . . . . . . Highest Temperature 622 | . 411 60 397 351 151 19 419 171 622 Average Temperature 115 | . 101 20 106 93 80 10 120 47 181 Received Heat Transfer 3172 | . 447 . 366 10 . . 732 392 1225 Effects 45 | . 5 . 6 1 . . 13 . 20 Shutdowns 8 | . 1 . 1 1 . . 2 . 3 Energy Bleed 8 | . . . 2 . . . 3 . 3 Interference 16 | . 2 . 3 . . . 7 . 4 Matter Decay 2 | . 1 . . . . . . . 1 Short Circuit 2 | . . . . . . . 1 . 1 Damage (minor) 4 | . 1 . . . . . . . 3 Damage (major) 5 | . . . . . . . . . 5 Siege Activations . | . . . . . . . . . . Robots Corrupted 3 | . 2 . 1 . . . . . . Combat Hostiles 1 | . 1 . . . . . . . . Parts Fried 7 | . 3 . 4 . . . . . . Impact Corruptions 5 | . . . 4 . . . . . 1 Robots Melted . | . . . . . . . . . . Combat Hostiles . | . . . . . . . . . . Parts Melted 1 | . 1 . . . . . . . . Heat Transferred 1639 | . 1264 200 . . . . . 175 . Parts Sabotaged . | . . . . . . . . . . Parts Stolen . | . . . . . . . . . . Parts Stripped . | . . . . . . . . . . Power Chain Reactions 2 | . 1 1 . . . . . . . Alert | -11 -10 -10 -9 -9 -9 -8 -8 -7 -7 ------- Run | Yrd Mat Min Mat Min Exi Min Mat Fac Sto Peak Influence 977 | . 357 235 465 178 . . 977 845 832 Initial 440 | . . 120 4 177 . . . 440 384 Average 296 | . 262 126 203 123 . . 338 580 646 Maximum Alert Level 3 | . 1 1 2 . . . 3 3 3 Low Security (%) 44 | 100 17 62 56 100 . 100 51 . . Level 1 26 | . 82 37 29 . . . 12 5 10 Level 2 18 | . . . 13 . . . 13 80 44 Level 3 9 | . . . . . . . 21 14 45 Level 4 . | . . . . . . . . . . Level 5 . | . . . . . . . . . . High Security . | . . . . . . . . . . Max Security . | . . . . . . . . . . Squads Dispatched 37 | . 6 . 6 . . . 8 8 9 Investigation 16 | . 4 . 4 . . . 3 2 3 Extermination 4 | . . . . . . . . 3 1 Reinforcement 10 | . 2 . 2 . . . 2 1 3 Assault 7 | . . . . . . . 3 2 2 Garrison . | . . . . . . . . . . Intercept . | . . . . . . . . . . Searches Triggered . | . . . . . . . . . . Construction Impeded 1 | . . . . . . . . . 1 Haulers Reinforced 1 | . . . . . . . . 1 . Active Scanning Responses . | . . . . . . . . . . Cargo Convoy Interrupts . | . . . . . . . . . . Stealth | -11 -10 -10 -9 -9 -9 -8 -8 -7 -7 --------- Run | Yrd Mat Min Mat Min Exi Min Mat Fac Sto Distress Signals 13 | . 2 . 2 . . . 7 . 2 Communications Jammed . | . . . . . . . . . . Distress Signals . | . . . . . . . . . . Times Spotted 232 | . 40 9 47 5 . . 69 23 39 Peak Tracking Total 9 | . 5 3 6 3 . . 9 5 9 Tactical Retreats 9 | . . . 2 . . . 4 2 1 Traps | -11 -10 -10 -9 -9 -9 -8 -8 -7 -7 ------- Run | Yrd Mat Min Mat Min Exi Min Mat Fac Sto Traps Triggered 9 | . 4 . 2 . . . 2 1 . Indirectly . | . . . . . . . . . . Trap Hack Attempts . | . . . . . . . . . . Triggered . | . . . . . . . . . . Disarmed . | . . . . . . . . . . Reprogrammed . | . . . . . . . . . . Reused . | . . . . . . . . . . Traps Extracted . | . . . . . . . . . . Installed . | . . . . . . . . . . Triggered . | . . . . . . . . . . Machines | -11 -10 -10 -9 -9 -9 -8 -8 -7 -7 ---------- Run | Yrd Mat Min Mat Min Exi Min Mat Fac Sto Machines Disabled 41 | . 11 2 2 . . . 4 17 5 Max in Single Turn 6 | . 2 1 1 . . . 1 6 3 Machines Repaired . | . . . . . . . . . . Machines Dismantled . | . . . . . . . . . . Machines Sabotaged . | . . . . . . . . . . Overloaded Fab Kills . | . . . . . . . . . . Hacking | -11 -10 -10 -9 -9 -9 -8 -8 -7 -7 --------- Run | Yrd Mat Min Mat Min Exi Min Mat Fac Sto Machines Accessed 46 | . 8 . 15 . 2 . 11 6 4 Terminals 28 | . 6 . 9 . . . 6 4 3 Fabricators 1 | . . . . . . . . 1 . Repair Stations 6 | . 1 . 2 . . . 1 1 1 Recycling Units 5 | . 1 . 2 . . . 2 . . Scanalyzers 4 | . . . 2 . . . 2 . . Garrison Access . | . . . . . . . . . . Total Hacks 127 | . 17 . 58 . 2 . 27 13 10 Successful 62 | . 6 . 33 . 2 . 15 3 3 Failed 65 | . 11 . 25 . . . 12 10 7 Catastrophic 14 | . 4 . 3 . . . 2 2 3 Database Lockouts . | . . . . . . . . . . Manual 48 | . 10 . 24 . 1 . 12 1 . Terminals 73 | . 13 . 30 . . . 13 9 8 Fabricators 2 | . . . . . . . . 2 . Repair Stations 14 | . 3 . 4 . . . 3 2 2 Recycling Units 6 | . 1 . 2 . . . 3 . . Scanalyzers 30 | . . . 22 . . . 8 . . Garrison Access . | . . . . . . . . . . Terminal Hacks 20 | . 3 . 8 . 2 . 5 1 1 Record 3 | . . . 1 . 1 . . . 1 Robot Analysis 4 | . 1 . 2 . . . 1 . . Prototype ID Bank 3 | . 1 . 1 . . . 1 . . Open DSF 1 | . . . . . . . . 1 . Branch Access Points 3 | . 1 . 1 . . . 1 . . Terminal Index 1 | . . . . . . . 1 . . Unreport Threat 1 | . . . 1 . . . . . . Dispatch Records 1 | . . . . . . . 1 . . Recall Investigation 1 | . . . 1 . . . . . . Recall Reinforcements 1 | . . . 1 . . . . . . Derelict Proto ID Bank 1 | . . . . . 1 . . . . Fabricator Hacks . | . . . . . . . . . . Repair Station Hacks 12 | . 2 . 4 . . . 2 2 2 Scan Component 6 | . 1 . 2 . . . 1 1 1 Repair 6 | . 1 . 2 . . . 1 1 1 Recycling Unit Hacks . | . . . . . . . . . . Scanalyzer 22 | . . . 18 . . . 4 . . Insert Component 11 | . . . 8 . . . 3 . . Analyze 11 | . . . 10 . . . 1 . . Garrison Access Hacks . | . . . . . . . . . . Unauthorized Hacks 8 | . 1 . 3 . . . 4 . . Terminals . | . . . . . . . . . . Fabricators . | . . . . . . . . . . Repair Stations . | . . . . . . . . . . Recycling Units 5 | . 1 . 2 . . . 2 . . Reject 5 | . 1 . 2 . . . 2 . . Scanalyzers 3 | . . . 1 . . . 2 . . Extract 3 | . . . 1 . . . 2 . . Garrison Access . | . . . . . . . . . . Data Cores Recovered . | . . . . . . . . . . Used . | . . . . . . . . . . Hacking Detections 38 | . 7 . 13 . . . 9 5 4 Full Trace Events 11 | . 3 . 3 . . . 2 1 2 Feedback Events 1 | . . . 1 . . . . . . Corruption 1 | . . . 1 . . . . . . Feedback Blocked . | . . . . . . . . . . Robot Schematics Acquired . | . . . . . . . . . . Robots Built . | . . . . . . . . . . Authchips . | . . . . . . . . . . Time . | . . . . . . . . . . Total Robot Build Rating . | . . . . . . . . . . Part Schematics Acquired 17 | . . . 13 . . . 4 . . Parts Built . | . . . . . . . . . . Authchips . | . . . . . . . . . . Time . | . . . . . . . . . . Total Part Build Rating . | . . . . . . . . . . Parts Repaired 6 | . 1 . 2 . . . 1 1 1 Time 182 | . 32 . 58 . . . 32 16 44 Parts Recycled . | . . . . . . . . . . Recycled Matter . | . . . . . . . . . . Retrieved Matter . | . . . . . . . . . . Retrieved Components . | . . . . . . . . . . Parts Scanalyzed 10 | . . . 8 . . . 2 . . Part Schematics Acquired 8 | . . . 7 . . . 1 . . Parts Damaged 1 | . . . . . . . 1 . . Bothacking | -11 -10 -10 -9 -9 -9 -8 -8 -7 -7 ------------ Run | Yrd Mat Min Mat Min Exi Min Mat Fac Sto Used RIF Installer . | . . . . . . . . . . Robots Hacked . | . . . . . . . . . . Non-combat . | . . . . . . . . . . Combat . | . . . . . . . . . . Robot Hacks Applied . | . . . . . . . . . . Relay Couplers Released 4 | . . . . . . . . 4 . Programmers 4 | . . . . . . . . 4 . Fabnet Peak Effective % . | . . . . . . . . . . Robots Rewired . | . . . . . . . . . . Allies Hacked . | . . . . . . . . . . Hacks Repelled . | . . . . . . . . . . Allies | -11 -10 -10 -9 -9 -9 -8 -8 -7 -7 -------- Run | Yrd Mat Min Mat Min Exi Min Mat Fac Sto Total Allies 18 | . . 6 . . . . . . 12 Largest Group 10 | . . 3 3 . . . . . 10 Highest-Rated Group 173 | . . 55 55 . . . . . 173 Highest-Rated Ally 31 | . . 31 31 . . . . . 31 Total Orders . | . . . . . . . . . . Ally Attacks 116 | . . 26 25 . . . . . 65 Total Damage 1374 | . . 183 339 . . . . . 852 Kills 19 | . . 5 7 . . . . . 7 Allies Corrupted 1 | . . . . . . . . . 1 Allies Melted . | . . . . . . . . . . Intel | -11 -10 -10 -9 -9 -9 -8 -8 -7 -7 ------- Run | Yrd Mat Min Mat Min Exi Min Mat Fac Sto Robot Analysis Total 4 | . 1 . 2 . . . 1 . . Derelict Logs Recovered 3 | . . 2 . 1 . . . . . Drone Launches 4 | . . . . . . . . . 4 Drone Recoveries . | . . . . . . . . . . Exploration | -11 -10 -10 -9 -9 -9 -8 -8 -7 -7 ------------- Run | Yrd Mat Min Mat Min Exi Min Mat Fac Sto Turns Passed 17659 | 83 2540 1058 4631 946 661 766 3916 1881 1177 Spaces Moved 7233 | 45 1298 613 2008 374 270 310 1343 653 319 Core 4 | 3 . . . . . . . . 1 Treads 7226 | 42 1298 613 2005 374 270 310 1343 653 318 Legs . | . . . . . . . . . . Wheels 3 | . . . 3 . . . . . . Hover . | . . . . . . . . . . Flight . | . . . . . . . . . . Fastest Speed 50 | 50 160 160 125 243 243 243 240 242 238 Average Speed 210 | 152 160 160 206 243 243 243 241 245 245 Slowest Speed 1450 | 160 240 160 243 243 243 243 243 325 1450 Overloaded Moves . | . . . . . . . . . . Propulsion Burnouts . | . . . . . . . . . . Robots Hopped . | . . . . . . . . . . Cave-ins Triggered . | . . . . . . . . . . Exploration Rate (%) 59 | 5 99 97 98 70 60 68 52 13 29 Regions Visited 9 Branch Regions 5 Pre-discovered Areas 2 | . . 1 . . 1 . . . . Known Exits Taken 2 | . 1 . 1 . . . . . . Unknown Exits Taken 7 | 1 . 1 . 1 1 1 1 1 . Scrap Searched 1 | . . 1 . . . . . . . Spaces Dug 21 | . . . 9 . . . 3 2 7 Terrain Destroyed 536 | . 53 12 33 48 . . 136 144 110 Melee 20 | . . . 9 . . . 2 2 7 Projectile 115 | . . 1 17 5 . . 30 16 46 AOE 401 | . 53 11 7 43 . . 104 126 57 Terrain Rammed . | . . . . . . . . . . Walls Destroyed . | . . . . . . . . . . Machines Disabled . | . . . . . . . . . . Actions | -11 -10 -10 -9 -9 -9 -8 -8 -7 -7 --------- Run | Yrd Mat Min Mat Min Exi Min Mat Fac Sto Total 8673 | 56 1578 668 2298 391 279 325 1745 793 540 Wait 447 | . 46 42 71 . . 10 175 26 77 Move 7224 | 44 1297 612 2007 373 269 309 1342 652 319 Hop . | . . . . . . . . . . Pick Up 121 | 6 25 1 30 1 3 3 23 17 12 Fast Attach 38 | 6 11 . 9 . . . 10 . 2 Attach 40 | . 4 . 2 . . 2 7 13 12 Detach 5 | . 1 . 1 . 2 . 1 . . Swap 103 | . 25 . 32 5 . . 20 9 12 Drop 115 | . 30 1 33 1 5 1 24 7 13 Fire 548 | . 139 12 102 11 . . 140 66 78 Melee 30 | . . . 11 . . . 3 3 13 Ram . | . . . . . . . . . . Kick . | . . . . . . . . . . Crush 2 | . . . . . . . . . 2 Escape Stasis . | . . . . . . . . . . Rewire . | . . . . . . . . . . Trap . | . . . . . . . . . . Miscellaneous . | . . . . . . . . . . Route ------- -11/Scrapyard -10/Materials (discovered 4 exits: *Mat x3 / *Min) -10/Mines (discovered 2 exits: *Mat x2) -9/Materials (discovered 5 exits: *Mat x3 / *Min x2) -9/Mines (discovered 2 exits: *Mat / *Exi) -9/Exiles -8/Mines (discovered 2 exits: *Mat x2) -8/Materials -7/Factory -7/Storage History --------- Turn | Location | Event 15 | -11/Scrapyard | Discovered new exit (range 15) 84 | -11/Scrapyard | Entered Materials 217 | -10/Materials | Discovered new exit (range 14) 315 | -10/Materials | Build established: Mutant 390 | -10/Materials | Discovered new exit (range 7) 1108 | -10/Materials | Discovered new exit (range 16) 1230 | -10/Materials | Identified exit to Mines 1277 | -10/Materials | Core integrity fell below 50% 1943 | -10/Materials | Discovered new exit (range 15) 2499 | -10/Materials | Repaired Rnf. Ion Engine 2624 | -10/Materials | Entered Mines 2755 | -10/Mines | Discovered new exit (range 10) 2809 | -10/Mines | Received a Mining Laser from a helpful Derelict 3083 | -10/Mines | Assisted by bots powering up and referring to "LRC-V3" 3235 | -10/Mines | Learned location of Zion (-7) 3468 | -10/Mines | Learned Materials stockpile data 3477 | -10/Mines | Discovered new exit (range 9) 3682 | -10/Mines | Entered Materials 3682 | -9/Materials | Accompanied by 3 allies 3682 | -9/Materials | Evolved 2 slots: Propulsion x1, Utility x1 3687 | -9/Materials | Led the pair of lost Derelicts to an unsafe place 3893 | -9/Materials | Discovered new exit (range 14) 4054 | -9/Materials | Identified exit to Mines 4417 | -9/Materials | Repaired Maul 4632 | -9/Materials | Discovered new exit (range 14) 5460 | -9/Materials | Discovered new exit (range 5) 5779 | -9/Materials | Repaired Lgt. Armor Plating 6514 | -9/Materials | Discovered new exit (range 15) 8313 | -9/Materials | Entered Mines 8344 | -9/Mines | Found a hidden stash of uninstalled traps 8852 | -9/Mines | Learned Materials security intel 9190 | -9/Mines | Discovered new exit (range 9) 9247 | -9/Mines | Deemed a non-threat by the Exiles lab entrance 9249 | -9/Mines | Discovered new exit (range 5) 9259 | -9/Mines | Entered Exiles 9338 | -9/Exiles | Met 8R-AWN 9375 | -9/Exiles | Met EX-HEX 9443 | -9/Exiles | Met EX-BIN 9472 | -9/Exiles | Aligned with FarCom system 9474 | -9/Exiles | Given EX-Vault access code 9530 | -9/Exiles | Opened EX-Vault 9543 | -9/Exiles | Found Latent Energy Streamer 9593 | -9/Exiles | Warned to stay clear of 0b10 Research branches 9661 | -9/Exiles | Met EX-DEC 9794 | -9/Exiles | Discovered new exit (range 10) 9920 | -9/Exiles | Left Exiles lab with Latent Energy Streamer 9920 | -9/Exiles | Entered Mines 10151 | -8/Mines | Discovered new exit (range 11) 10528 | -8/Mines | Discovered new exit (range 9) 10686 | -8/Mines | Entered Materials 10686 | -8/Materials | Evolved 2 slots: Propulsion x1, Utility x1 12431 | -8/Materials | Repaired Hrd. Light Armor Plating 13486 | -8/Materials | First assault squad dispatched 13931 | -8/Materials | Discovered new exit (range 14) 14602 | -8/Materials | Entered Factory 14602 | -7/Factory | Evolved 2 slots: Utility x1, Weapon x1 14631 | -7/Factory | Discovered new exit (range 5) 14892 | -7/Factory | Build established: Tank 15402 | -7/Factory | First assault squad dispatched 15499 | -7/Factory | Build established: Scavenger-Tank 15612 | -7/Factory | Lost 6 parts (2n3u1w) 15863 | -7/Factory | Repaired Med. Armor Plating 16123 | -7/Factory | Build established: Mutant 16483 | -7/Factory | Entered Storage 16658 | -7/Storage | Destroyed 8 combat bots 16727 | -7/Storage | Assisted by bots powering up and referring to "LRC-V3" 16787 | -7/Storage | Lost 4 allies 16859 | -7/Storage | Lost 5 allies 17290 | -7/Storage | Repaired Imp. Shield Generator 17333 | -7/Storage | Build established: Scavenger-Tank 17489 | -7/Storage | Met a pair of Derelict thieves 17612 | -7/Storage | System corruption reached 10% 17637 | -7/Storage | Core integrity fell below 50% 17651 | -7/Storage | Core integrity fell below 20% 17660 | -7/Storage | Destroyed by G-50 Soldier with Heavy Laser Last Messages --------------- 17633_ L-41 Fighter knocked back. 17633_ K-01 Serf collects debris. 17635_ Overheating: Matter decay (-31). 17636_ L-41 Fighter knocked back. 17636_ K-01 Serf cleans the Heavy Doors. 17636_ Critical hit (Burn: +37). 17637_ Mni. Assault Cannon severed. 17638_ Critical hit (Burn: +37). 17640_ K-01 Serf collects debris. 17642_ Lgt. Nuclear Core destroyed. 17643_ K-01 Serf collects debris. 17644_ Latent Energy Streamer severed. 17646_ K-01 Serf collects debris. 17648_ System corrupted: Energy discharge (-12). 17649_ K-01 Serf collects debris. 17651_ L-41 Fighter destroyed. 17652_ K-01 Serf collects debris. 17653_ M-28 Smith repairs K-01 Serf. 17654_ K-01 Serf destroyed. 17655_ M-28 Smith repairs Particle Gun. Map ----- +----------------------------------------------------+ | | | | | | | | | | | | | | | | | | | | | | | | | | | ?????????????????????????????????????????????????? | | ?????????????????????????????????????????????????? | | ?????????????????????????????????????????????????? | | ?????????????????????????????????????????????????? | | ?????????????????????????????????????????????????? | | ?????????????????????????????????????????????????? | | ?????????????????????????????????????????????????? | | ?????????????????????????????????????????????????? | | ?????????????????????????????????????????????????? | | ?????????????????????????????????????????????????? | | ???????????????????????########??????????????????? | | ???????????????????????#[%[%[]#??????????????????? | | ???????????????????????#m@*g] #??????????????????? | | ???????????????????????#=%%]%]#??????????????????? | | ???????????????????????#%=gg]i#??????????????????? | | ???????????????????????##"%"###??????????????????? | | ???????????????????????# !=T#???#####???????????? | | ???????????????????????# !=##???#"""#???????????? | | ???????????????????????####+######"R"###?????????? | | ?????????????????????????# %[## ##" "#"#?????????? | | ???????????????????+###### ! ## ###???####? | | ????????????????+ % #" """ ""#??#"""#? | | ???????????????????# ##### ## " ""##?#"Y"#? | | ?????????????????????????# ## " ###" "## | | ?????????????????????????# ## "" ## | | ?????????????????????????# #" ""### """ | | ?????????????????????????# ##=*= % # ### """ | | ????????????????????????## ""%[!= #### """ | | ????????????????????????#" ##!%= #### | | ???????????????????????## ###"+# "##"# """ | | ???????????????????????#"! # """ | | ???????????????????????##[=T = " """ | | ???????????????????????#"%[ % * # | | ???????????????????????##[[ ##"#""#"#" # """ | | ????????????????????????####### ##^^^+ """ | | ?????????????????????????????#" ##^ "% """ | | ????????????????????????????# # ##%%%" | +----------------------------------------------------+ Best States ------------- Heat Dissipation 53 Energy Generation 14 Energy Capacity 265 Matter Stores 300 Matter Capacity 300 Sight Range 20 Terrain Scan Density 10 Armor Coverage 375 Resistance: TH 10 Evasion (%) 40 Targeting Accuracy 8 Recoil Reduction 4 Item Schematics ----------------- Huge Storage Unit | -9/Materials | Scanalyzed Med. Armor Plating | -9/Materials | Scanalyzed Arm. Treads | -9/Materials | Scanalyzed Hcp. Matter Pod | -9/Materials | Scanalyzed Cooling System | -9/Materials | Scanalyzed Lgt. Armor Plating | -9/Materials | Scanalyzed Visual Processing Unit | -9/Materials | Extracted Trap Extractor | -9/Materials | Extracted Med. Matter Pod | -9/Materials | Extracted Arm. Wheel | -9/Materials | Extracted Field Recycling Unit | -9/Materials | Extracted Weight Redist. System | -9/Materials | Extracted Maul | -9/Materials | Scanalyzed Adv. Treads | -8/Materials | Scanalyzed Lrg. Battery | -8/Materials | Extracted Imp. Terrain Scanner | -8/Materials | Extracted Hacking Suite | -8/Materials | Extracted Robot Schematics ------------------ None Fabricated ------------ Nothing Alien Tech Used ----------------- None Achievements -------------- None Challenges ------------ None Game ------ Seed GaussArmorBooster Manual? 0 Play Time 02:08:39 Cumulative 46.9 hours Start 2024.08.25 @ 11:22:39 End 2024.08.26 @ 15:55:19 Sessions 7 Manual Loads 0 Difficulty Rogue Special Mode None Game No. 35 Rogue 23 Adventurer 12 Explorer 0 Win Type - Total 1 Types 1/0/0/0/0/0/0/0/0 Lore% 12 Gallery% 24 Achievement% 28 Wizard Run 0 Options --------- Layout 0 ASCII 0 Keyboard 0 Movement Numpad Keybinds 0 Fullscreen 2 Font 18/SmallcapsGlow Map View 76x50 Zoom Use 1% Tactical HUD 1 Map Filters NONE Filters NONE Steam 1 RUN: bc1c248e-e46d-4cb4-82eb-9580ac3591d8